{"text_format":"1","workbook":"xlsx","n_sheets":13,"sheets":["INFO","Simplified_input_correlation","Product_descriptive_data","Product_tech_data","Process_design_data","Data_catalogue_example","Input_series","Method_input","Method_calculation","Method_output","Output_series","Graphs","History"],"not_rendered":{"charts":12,"images":20,"macros":1,"external_links":2,"defined_names":37,"comments":6,"pivot_tables":0},"unopened":[],"bounds":{"document_bytes":16777216,"sheet_cells":100000,"rows_first":2000,"rows_last":500,"rows_between":2000,"halvings":0,"cell_chars":16384,"cell_head_chars":4096},"cells_cut":0,"cells_raw":0,"read":"whole","date_system":"1900"}

{"sheet":"INFO","index":0,"n_rows":18,"n_cols":1,"rows_kept":18,"cut":false,"hidden":false,"merged":[]}
["\nDISCLAIMER:\n• This spreadsheet has been developed in the framework of the preparation and revision of the set of EN or ISO standards on the energy performance of buildings, to support the European \"Energy Performance of Buildings Directive\" recast (EPBD-recast, directive 2010/31/EU). \n• It is meant for use by  CEN and ISO technical committee(s) and the working group(s) working on the preparation or revision of the EPB-standard to which this spreadsheet applies. The spreadsheet supports checking  that all equations in the developed standard are consistent and can be linked with other relevant standards. It is not meant to perform a full or partial energy performance calculation.\n• The spreadsheet supports the expert user of the standards, in particular those who want to review the content of the standard and those who want to translate the standard to a software, to understand the correct interpretation of the equations and calculation steps in the standard.\n• Although it has been developed with care, neither the technical committee(s), nor the working group(s) and experts related to the EPB- standard to which this spreadsheet applies warrant that the calculations and procedures in this spreadsheet are free of errors. The technical committees as well as the working groups and their respective members expressly disclaim any liability or responsibility arising from use of this spreadsheet, or any consequences thereof. Any responsibility arising from the use of this spreadsheet lies with the user."]
["DRAFT VERSION:\n• As long as the associated EPB standard or any of the other EPB standards to which it is directly linked are in a draft stage, this spreadsheet is also a draft version only."]
["WARNINGS: \n• Note that the spreadsheet may not allow testing all calculation options that are possible according to the standard to which it applies. This remark applies in particular but not only to limitations on the number instances of a variable that can be considered. \n• In case of differences, the standard should be regarded as the reference, not the spreadsheet. However, during the standard's drafting phase, shortcomings in the draft standard may have been detected and dealt with in the spreadsheets (ideally, such differences are marked).\n• Note also that these spreadsheets are purely intended for testing and demonstration and therefore not aiming to be user friendly or to be protected against wrong or improper use. \n"]
["TERMS OF USE:\n• The user is not allowed to redistribute a modified version of this spreadsheet.\n• The author(s) would appreciate your feed back on the spreadsheet via the comment sheets for the associated draft standard to be prepared by the national standards bodies during enquiry of the draft standard(s),\n"]
["Intended use of this document\nThose responsible for the drafting of actual individual EPB standards shall\n-  read and understand the following documents\n   - prCEN/TS 16628 Basic Principles (in short \"BP\")\n   - prCEN/TS 16629 Detailed Technical Rules (in short \"DTR\")\n   - prEN 15603:2013 (\"Overarching Standard\", in short \"OA\"))\n   - prCEN/TR 15615:2013 Technical report to overarching standard;\n- Prepare their individual EPB standard according to CEN rules, BP, DTR and OA\n- Prepare the accompanying technical report using the dedicated template\n- Prepare an accompanying XLS spreadsheet, to demonstrate inputs, output and calculation chain.\n\nThis sample excel spreadsheet provides a template to help in this task."]
["Why an Excel spradsheet?\n\nTo demonstrate the validity and required data I/O for the calculation procedure defined in the standard:\n- list of all input needed --> sheet \"Method_input\"\n- list of intended output --> sheet  \"Method_output\"\n- calculation sequence --> sheet  \"Method_calculation\""]
["The example is prepared for a simple procedure. The sheet calculation may need extensions such as:\n- using several columns when operating on arrays\n- refering to a subset of sheets input/calculation/output to describe a subroutine\nFor complex tasks MACRO can be used.\n\nThis sheet does not support calculation methods that take into account data in a different time-step than that that is being calculated. A version that allows taking into account values at previous time step will be developed."]
["LIST OF AVAILABLE SHEETS"]
["Simplified_input_correlation\nUse this sheet to demontrate simplified input correlation, if any in your standard.\nTypically these correlations are defined in annex C of the standard. They provide the normal detailed input of a procedure, based on a simplified input data set."]
["Product_descriptive_data\nUse this sheet to list product descriptive data (typically with case identifiers). Some examples of selection tables are given.\nThe output from the selection tables (green cells) can be linked to the sheet \"method_input\" for use in the procedure."]
["Product_tech_data\nUse this sheet to list product technical data (typically numerical values and data). Some examples are given with default that may be typically included in annex A of the standard.\nThe output from the selection tables (green cells) can be linked to the sheet \"method_input\" for use in the procedure."]
["Process_design_data\nUse this sheet to list system descriptive data (typically with case identifiers). Some examples of selection tables are given.\nThe output from the selection tables (green cells) can be linked to the sheet \"method_input\" for use in the procedure."]
["Data_catalogue_example\nIt is an example of how a data catalogue can work, filtering the catalogue of product properties based on product descriptive data. You can optionally build a similar catalogue for products involved in your standard."]
["Input_series\nPrepare in this sheet data for each time step if you want to test the procedure on more steps."]
["Method_input\nList in this sheet all the input required for the calculation in one time step.\nTHIS SHEET IS REQUIRED TO DEMONSTRATE THE REQUIRED DATA INPUT."]
["Method_calculation\nDetail in this sheet your calculation procedure. There should be one calculation in one cell for each equation in the standard.\nTHIS SHEET IS REQUIRED TO DEMONSTRATE THE CALCULATION PROCEDURE."]
["Method_output\nList in this sheet all the intended output of the procedure.\nTHIS SHEET IS REQUIRED TO DEMONSTRATE THE AVAILABLE DATA OUTPUT."]
["Output_series\nSeries alculation results are stored in this sheet.\nCalculation for each time step is launched in this sheet."]

{"sheet":"Simplified_input_correlation","index":1,"n_rows":24,"n_cols":8,"rows_kept":24,"cut":false,"hidden":false,"merged":[[0,0,0,7]]}
["Create here a simulation of each correlation method in your Annex C"]
[]
[]
["Name","Symbol","Unit","Value","Range","Formula ref.","Formula","Notes"]
["Input data"]
["Length of the building","lL","m",30,"4…100"]
["Width of the building","lW","m",20,"4…20"]
["Number of loors","Nlev","-",3,"1…10"]
["Floor heigth","Hfl","m",3.1,"2…5"]
[]
[]
["METHOD"]
[]
["Detail all formulas"]
["Length of connection of radiators to vertical shafts ","lA","m",{"$f":"0.55*Method_in*D7*D8","v":990}]
["Length of vertical shafts","lS","m",{"$f":"0.025*Method_in*D7*D8*D9","v":139.5}]
["Length of base collector","lV","m",{"$f":"2*Method_in+0.01625*Method_in*D7*D7","v":255}]
["…"]
[]
["Output data"]
["Length of shafts","lS","m",null,"0...∞"]
["diameter of shafts","dS","m",null,"0…0,2"]
["Length of base ring","lB","m",null,"0...∞"]
["diameter of base ring","dB","m",null,"0…0,2"]

{"sheet":"Product_descriptive_data","index":2,"n_rows":31,"n_cols":3,"rows_kept":31,"cut":false,"hidden":false,"merged":[[0,0,0,2]]}
["Example of descriptive data.\nIn a simple structure, this can be connected directly to the \"method_input\" sheet where this data is required.\nIn this example spreadsheet the \"Method_input\" is linked to the \"data_catalogue\"."]
[]
[]
[]
[]
[" Product descriptive data (qualitative)"]
[]
["Cooling generator type 1"]
[1,"GEN_TYPE",{"$f":"INDEX(C11:C13,A9)","v":"COMP"}]
[]
["Compression chiller",null,"COMP"]
["Absorption chiller",null,"ABS"]
["Any other generator type",null,"OTHER"]
[]
[]
["Cooling generator type 2"]
[2,"GEN_TYPE",{"$f":"INDEX(C19:C21,A17)","v":"ABS"}]
[]
["Compression chiller",null,"COMP"]
["Absorption chiller",null,"ABS"]
["Any other generator type",null,"OTHER"]
[]
[]
["Heat rejection type"]
[4,"HEAT_REJ_TYPE",{"$f":"INDEX(C27:C31,A25)","v":"HYBRID"}]
[]
["Air cooled condenser",null,"AIR_C_COND"]
["Heat rejection with dry operation",null,"DRY"]
["Heat rejection with wet operation (sprayed air cooler, cooling tower)",null,"WET"]
["Heat rejection with dry or wet operation depending on conditions",null,"HYBRID"]
["Other type of heat rejection (ground, ground water, surface water)",null,"OTHER"]

{"sheet":"Product_tech_data","index":3,"n_rows":26,"n_cols":16,"rows_kept":26,"cut":false,"hidden":false,"merged":[[21,5,24,5],[20,6,20,11],[21,6,24,11],[25,6,25,11],[0,0,0,3]]}
["EXAMPLE OF A SHEET WITH DEFAULT INPUT\nCreate here a simulation of each default data formula given in annex A of the standard.\nOptionally connect the selected values to the detailed input data selection sheet  (detailed input)"]
[]
[]
["6.3.2.2.2 Compressor chiller characteristics",null,null,"Chiller 1","Chiller 2"]
["energy efficiency at full-load","EER1.0","-",2.83,4,"EN 14825","No",null,null,"Matrix A:"]
["evaporator chilled water outlet temperature at full load","ϑC;wat;evap;out;1.0","°C",7,7,"EN 14825","No",null,null,1,1,1,1,null,{"$f":"D5/((273+D6-0.5*D26)/(D7-D6+D26))","v":0.43676804357694071},{"$f":"E5/((273+E6-0.5*E26)/(E7-E6+E26))","v":0.71111111111111114}]
["condensor cooling water/air inlet temperature at full load","ϑcond;in;1.0","°C",35,35,"EN 14825","No",null,null,{"$f":"0.75^3","v":0.421875},{"$f":"0.75^2","v":0.5625},0.75,1,null,{"$f":"D8/((273+D9-0.5*D26)/(D10-D9+D26))","v":0.48829680306076145},{"$f":"E8/((273+E9-0.5*E26)/(E10-E9+E26))","v":0.63703703703703707}]
["energy efficiency at 75% load","EER0.75","-",3.59,4,"EN 14825","No",null,null,{"$f":"0.5^3","v":0.125},{"$f":"0.5^2","v":0.25},0.5,1,null,{"$f":"D11/((273+D12-0.5*D26)/(D13-D12+D26))","v":0.56023604176123498},{"$f":"E11/((273+E12-0.5*E26)/(E13-E12+E26))","v":0.56296296296296289}]
["evaporator chilled water outlet temperature at 75% load","ϑC;wat;evap;out;0.75","°C",7,7,"EN 14825","No",null,null,{"$f":"0.25^3","v":1.5625E-2},{"$f":"0.25^2","v":6.25E-2},0.25,1,null,{"$f":"D14/((273+D15-0.5*D26)/(D16-D15+D26))","v":0.48198074054860268},{"$f":"E14/((273+E15-0.5*E26)/(E16-E15+E26))","v":0.48888888888888887}]
["condensor cooling water/air inlet temperature at 75% load","ϑcond;in;0.75","°C",30,30,"EN 14825","No",null,null,"B = Inverse of matrix A:"]
["energy efficiency at 50% load","EER0.5","-",4.76,4,"EN 14825","No",null,null,{"$f":"MINVERSE(A)","v":10.666666666666659},-31.999999999999979,31.999999999999957,-10.66666666666665]
["evaporator chilled water outlet temperature at 50% load","ϑC;wat;evap;out;0.5","°C",7,7,"EN 14825","No",null,null,-15.999999999999988,55.99999999999995,-63.999999999999922,23.999999999999972]
["condensor cooling water/air inlet temperature at 50% load","ϑcond;in;0.5","°C",25,25,"EN 14825","No",null,null,7.333333333333325,-27.999999999999968,37.999999999999957,-17.333333333333318]
["energy efficiency at 25% load","EER0.25","-",4.8499999999999996,4,"EN 14825","No",null,null,-0.99999999999999867,3.9999999999999947,-5.9999999999999929,3.9999999999999973]
["evaporator chilled water outlet temperature at 25% load","ϑC;wat;evap;out;0.25","°C",7,7,"EN 14825","No"]
["condensor cooling water/air inlet temperature at 25% load","ϑcond;in;0.25","°C",20,20,"EN 14825","No"]
["energy efficiency at 5th measured point","EER5","-",3.63,4,"local","No"]
["evaporator chilled water outlet temperature at 5th measured point","ϑC;wat;evap;out;5","°C",7,7,"local","No"]
["condensor cooling water/air inlet temperature at 5th measured point","ϑcond;in;5","°C",35,35,"local","No"]
[]
[null,null,null,null,null,"Formula ref","Formula"]
["Coefficient for the calculation of compression chiller characteristics","C1","-",{"$f":"MMULT(J11:M14,O6:O9)","v":1.8197868707174161},{"$f":"MMULT(J11:M14,P6:P9)","v":-1.0658141036401503E-14},"Formula (1)"]
["Coefficient for the calculation of compression chiller characteristics","C2","-",-3.9312366253809738,8.8817841970012523E-15]
["Coefficient for the calculation of compression chiller characteristics","C3","-",2.4652919179473933,0.29629629629628873]
["Coefficient for the calculation of compression chiller characteristics","C4","-",8.2925880293106324E-2,0.41481481481481541]
["Corrective temperature difference","Dϑcorr","K",{"$f":"(D11/D17*D13-D19)/(1-D11/D17)+D18","v":14.123893805309745},20,"Formula (2)"]

{"sheet":"Process_design_data","index":4,"n_rows":33,"n_cols":3,"rows_kept":33,"cut":false,"hidden":false,"merged":[[0,0,0,2]]}
["Example of process design data.\nIn a simple structure, this can be connected directly to the \"method_input\" sheet where this data is required.\nIn this example spreadsheet the \"Method input\" is linked to the detailed input."]
[]
[]
[]
[]
[" Process design data (qualitative)"]
[]
["System type"]
[2,null,{"$f":"INDEX(C11:C12,A9)","v":"DX"}]
[]
["Water based system",null,"Water"]
["Direct expansion system",null,"DX"]
[]
[]
["Emitter type"]
[1,"DX_CLG_DIS_TYPE",{"$f":"INDEX(C18:C20,A16)","v":"ZONE_BASED"}]
[]
["zone based emitters",null,"ZONE_BASED"]
["air based distribution",null,"AIR_BASED"]
[]
[]
["Control of the cooling generation outlet temperature"]
[2,"CLG_GEN_TMP_CTRL",{"$f":"INDEX(C25:C26,A23)","v":"VARIABLE"}]
[]
["Constant temperature in the cooling generation plant",null,"CONST"]
["Variable temperature in the cooling generation plant",null,"VARIABLE"]
[]
[]
["Control of the chilled water flow temperature of the total distribution system"]
[2,"CLG_DISTR_TMP_CTRL",{"$f":"INDEX(C32:C33,A30)","v":"ODA_COMP"}]
[]
["constant supply temperature",null,"CONST"]
["Variable set point with outdoor temperature compensation",null,"ODA_COMP"]

{"sheet":"Data_catalogue_example","index":5,"n_rows":119,"n_cols":30,"rows_kept":119,"cut":false,"hidden":false,"merged":[[0,0,0,6],[0,9,0,20],[0,22,0,30],[36,23,36,24],[36,25,36,26],[36,27,36,28],[36,29,36,30]]}
["EXAMPLE OF A PRODUCT DATA CATALOGUE\nProduct descriptive data is used to filter the actual catalogue. Unsuitable prioducts are indicated by \"Non available\"\nThe desired product in the catalogue is then selected via the main list --> alla data is available with one click.\nNOTE: Default data are also part of the catalogue.\nThis sample catalogue is connected to the \"Method input\" sheet.\nNOTE: This highlights the high importance of the user interface and of a correct data input structuring.",null,null,null,null,null,null,null,null,"DATA FOR EACH BOILER",null,null,null,null,null,null,null,null,null,null,null,null,"SELECTION OF BOILERS COMPATIBLE WITH THE QUALITATIVE DESCRIPTION"]
[]
[]
[" Product descriptive data (qualitative)"]
[]
["Boiler use"]
[1,null,"BLR_USE",{"$f":"INDEX(D9:D11,A7)","v":"BLR_USE_H"}]
[]
["Heating",null,null,"BLR_USE_H"]
["Domestic hot water",null,null,"BLR_USE_DHW"]
["All",null,null,"BLR_USE_ALL"]
[]
[]
["Fuel"]
[1,null,"BLR_FUEL",{"$f":"INDEX(D17:D19,A15)","v":"BLR_FUEL_GAS"}]
["Values"]
["Gas",null,null,"BLR_FUEL_GAS"]
["Oil",null,null,"BLR_FUEL_OIL"]
["All",null,null,"BLR_FUEL_ALL"]
[]
[]
["Boiler type, condensing / non condensing"]
[2,null,"BLR_COND",{"$f":"INDEX(D25:D26,A23)","v":"BLR_COND_NO"}]
["Values"]
["Condensing",null,null,"BLR_COND_YES"]
["Non condensing",null,null,"BLR_COND_NO"]
[]
[]
["Product technical data"]
[]
["Generator output at full load;",null,null,null,"ФPn ","kW",60]
[]
[]
["Boiler product data",null,"BLR_DATA",{"$f":"INDEX(D38:D49,C36)","v":"BLR_DATA_GAS_LT"}]
[]
[null,null,2]
["Values",null,null,null,null,null,null,null,null,null,null,null,null,null,null,null,null,null,null,null,null,null,"Display ?","Condensing ?",null,"Fuel ?",null,"Condition 3?",null,"Condition 4?"]
[{"$f":"IF(W38,B38,\"NOT COMPATIBLE\")","v":"Gas, standard, minimum value"},"Gas, standard, minimum value",null,"BLR_DATA_GAS_STD",null,null,null,null,null,null,null,null,null,null,null,null,null,null,null,null,null,null,{"$f":"AND(X38,Z38,AB38,AD38)","v":true},{"$f":"$D$23=Y38","v":true},"BLR_COND_NO",{"$f":"OR($D$15=$D$19,$D$15=AA38)","v":true},"BLR_FUEL_GAS",true,null,true]
[{"$f":"IF(W39,B39,\"NOT COMPATIBLE\")","v":"Gas, low temperature, minimum value"},"Gas, low temperature, minimum value",null,"BLR_DATA_GAS_LT",null,null,null,null,null,null,null,null,null,null,null,null,null,null,null,null,null,null,{"$f":"AND(X39,Z39,AB39,AD39)","v":true},{"$f":"$D$23=Y39","v":true},"BLR_COND_NO",true,"BLR_FUEL_GAS",true,null,true]
["NOT COMPATIBLE","Gas, Condensing, minimum value",null,"BLR_DATA_GAS_CND",null,null,null,null,null,null,null,null,null,null,null,null,null,null,null,null,null,null,false,false,"BLR_COND_YES",true,"BLR_FUEL_GAS",true,null,true]
["NOT COMPATIBLE","Oil, standard, minimum value",null,"BLR_DATA_OIL_STD",null,null,null,null,null,null,null,null,null,null,null,null,null,null,null,null,null,null,false,true,"BLR_COND_NO",false,"BLR_FUEL_OIL",true,null,true]
["NOT COMPATIBLE","Oil, low temperature, minimum value",null,"BLR_DATA_OIL_LT",null,null,null,null,null,null,null,null,null,null,null,null,null,null,null,null,null,null,false,true,"BLR_COND_NO",false,"BLR_FUEL_OIL",true,null,true]
["NOT COMPATIBLE","Oil, condensing, minimum value",null,"BLR_DATA_OIL_CND",null,null,null,null,null,null,null,null,null,null,null,null,null,null,null,null,null,null,false,false,"BLR_COND_YES",false,"BLR_FUEL_OIL",true,null,true]
["NOT COMPATIBLE","Default national: 1 - old oil boiler",null,"BLR_DATA_NAT_1",null,null,null,null,null,null,null,null,null,null,null,null,null,null,null,null,null,null,false,true,"BLR_COND_NO",false,"BLR_FUEL_OIL",true,null,true]
["Default national: 2 - old gas boiler","Default national: 2 - old gas boiler",null,"BLR_DATA_NAT_2",null,null,null,null,null,null,null,null,null,null,null,null,null,null,null,null,null,null,true,true,"BLR_COND_NO",true,"BLR_FUEL_GAS",true,null,true]
["Default national: 3 - new boiler","Default national: 3 - new boiler",null,"BLR_DATA_NAT_3",null,null,null,null,null,null,null,null,null,null,null,null,null,null,null,null,null,null,true,true,"BLR_COND_NO",true,"BLR_FUEL_GAS",true,null,true]
["Make 1 boiler 1 gas (catalogue)","Make 1 boiler 1 gas (catalogue)",null,"BLR_DATA_CAT_01",null,null,null,null,null,null,null,null,null,null,null,null,null,null,null,null,null,null,true,true,"BLR_COND_NO",true,"BLR_FUEL_GAS",true,null,true]
["NOT COMPATIBLE","Make 1 boiler 2 oil (catalogue)",null,"BLR_DATA_CAT_02",null,null,null,null,null,null,null,null,null,null,null,null,null,null,null,null,null,null,false,true,"BLR_COND_NO",false,"BLR_FUEL_OIL",true,null,true]
["Custom values","Custom values",null,"BLR_DATA_USR",null,null,null,null,null,null,null,null,null,null,null,null,null,null,null,null,null,null,true,true,"BLR_COND_NO",true,"BLR_FUEL_GAS",true,null,true]
[]
[]
["System design data"]
[]
["Localisation",null,"LOC",{"$f":"INDEX(D57:D60,C55)","v":"LOC_INT"}]
[null,null,1]
["Values"]
["Heated space",null,null,"LOC_INT"]
["Unheated space",null,null,"LOC_UNH"]
["Boiler room",null,null,"LOC_BLR"]
["External",null,null,"LOC_EXT"]
[]
[]
["Operating conditions"]
[]
[]
["Direct connection"]
["Independent flow rate"]
["Heat exchanger"]
["Last option"]
[]
[]
["Description",null,"Variable TAG","Option tag","Symbol","Unit","Value","Range",null,{"$f":"+D38","v":"BLR_DATA_GAS_STD"},{"$f":"+D39","v":"BLR_DATA_GAS_LT"},{"$f":"+D40","v":"BLR_DATA_GAS_CND"},{"$f":"+D41","v":"BLR_DATA_OIL_STD"},{"$f":"+D42","v":"BLR_DATA_OIL_LT"},{"$f":"+D43","v":"BLR_DATA_OIL_CND"},{"$f":"+D44","v":"BLR_DATA_NAT_1"},{"$f":"+D45","v":"BLR_DATA_NAT_2"},{"$f":"+D46","v":"BLR_DATA_NAT_3"},{"$f":"+D47","v":"BLR_DATA_CAT_01"},{"$f":"+D48","v":"BLR_DATA_CAT_02"},{"$f":"+D49","v":"BLR_DATA_USR"}]
["generator output at full load;",null,null,null,"ФPn ","kW",{"$f":"INDEX(J73:U73,1,$C$36)","v":60},null,null,{"$f":"+$G$31","v":60},60,60,60,60,60,60,60,60,45,30,{"$f":"+$G$31","v":60}]
["Boiler type",null,null,null,null,null,{"$f":"INDEX(J74:U74,1,$C$36)","v":"BLR_COND_NO"},null,null,"BLR_COND_NO","BLR_COND_NO","BLR_COND_YES","BLR_COND_NO","BLR_COND_NO","BLR_COND_YES","BLR_COND_NO","BLR_COND_NO","BLR_COND_NO","BLR_COND_NO","BLR_COND_NO","BLR_COND_YES"]
["Fuel type",null,null,null,null,null,{"$f":"INDEX(J75:U75,1,$C$36)","v":"BLR_FUEL_GAS"},null,null,"BLR_FUEL_GAS","BLR_FUEL_GAS","BLR_FUEL_GAS","BLR_FUEL_OIL","BLR_FUEL_OIL","BLR_FUEL_OIL","BLR_FUEL_OIL","BLR_FUEL_GAS","BLR_FUEL_GAS","BLR_FUEL_GAS","BLR_FUEL_OIL","BLR_FUEL_GAS"]
["CE marking",null,null,null,null,null,{"$f":"INDEX(J76:U76,1,$C$36)","v":"BLR_CE_YES"},null,null,"BLR_CE_YES","BLR_CE_YES","BLR_CE_YES","BLR_CE_YES","BLR_CE_YES","BLR_CE_YES","BLR_CE_YES","BLR_CE_YES","BLR_CE_YES","BLR_CE_YES","BLR_CE_NO","BLR_CE_YES"]
["Limited power",null,null,null,"ФPn,ltd","kW",null,null,null,{"$f":"IF(J73>400,400,J73)","v":60},{"$f":"IF(K73>400,400,K73)","v":60},60,60,60,60,60,60,60,45,30,60]
[null,null,null,null,"C1","%",null,null,null,85,88,94,85,88,94,92,91,93]
[null,null,null,null,"C2","%",null,null,null,2,1.5,1,2,1.5,1,0,0,0]
["generator efficiency at full load;",null,null,null,"ηgnr,Pn ","%",{"$f":"INDEX(J80:U80,1,$C$36)","v":90.667226875575466},null,null,{"$f":"J78+J79*LOG10(J77)","v":88.556302500767288},{"$f":"K78+K79*LOG10(K77)","v":90.667226875575466},95.778151250383644,88.556302500767288,90.667226875575466,95.778151250383644,92,91,93,94,92,93]
["generator output at intermediate load;",null,null,null,"ФPint ","kW",{"$f":"INDEX(J81:U81,1,$C$36)","v":18},null,null,{"$f":"+J73*0.3","v":18},{"$f":"+K73*0.3","v":18},18,{"$f":"+M73*0.3","v":18},{"$f":"+N73*0.3","v":18},{"$f":"+O73*0.3","v":18},18,18,18,13.5,9,18]
[null,null,null,null,"C3","%",null,null,null,81.5,89,98,81.5,89,{"$f":"98/1.05","v":93.333333333333329},90,89,91]
[null,null,null,null,"C4","%",null,null,null,3,1.5,1,3,1.5,{"$f":"1/1.05","v":0.95238095238095233},0,0,0]
["generator efficiency at intermediate load;",null,null,null,"ηgnr,Pint ","%",{"$f":"INDEX(J84:U84,1,$C$36)","v":91.667226875575466},null,null,{"$f":"J82+J83*LOG10(J77)","v":86.834453751150932},{"$f":"K82+K83*LOG10(K77)","v":91.667226875575466},99.778151250383644,86.834453751150932,91.667226875575466,95.026810714651077,90,89,91,94,92,93]
[null,null,null,null,"C5","%",null,null,null,8.5,5,4.8,8.5,5,4.8,5,5,5]
[null,null,null,null,"C6","%",null,null,null,-0.4,-0.35,-0.35,-0.4,-0.35,-0.35,-0.35,-0.35,-0.35]
["stand-by heat loss at test temperature difference Dθi,test;",null,null,null,"Фgnr,ls,P0","kW",{"$f":"INDEX(J87:U87,1,$C$36)","v":0.71576147134151091},null,null,{"$f":"+J73*(J85/100)*(J73^J86)","v":0.99153871472970456},0.71576147134151091,0.68713101248785047,{"$f":"+M73*(M85/100)*(M73^M86)","v":0.99153871472970456},{"$f":"+N73*(N85/100)*(N73^N86)","v":0.71576147134151091},{"$f":"+O73*(O85/100)*(O73^O86)","v":0.68713101248785047},0.71576147134151091,0.71576147134151091,0.71576147134151091,0.5,0.6,0.4]
[null,null,null,null,"C7","W",null,null,null,0,0,0,0,0,0,0,0,0]
[null,null,null,null,"C8","W",null,null,null,45,45,45,45,45,45,45,45,45]
[null,null,null,null,"n","-",null,null,null,0.48,0.48,0.48,0.48,0.48,0.48,0.48,0.48,0.48]
["power consumption of auxiliary devices at full load;",null,null,null,"Paux,gnr,Pn ","kW",{"$f":"INDEX(J91:U91,1,$C$36)","v":0.32116271006242814},null,null,{"$f":"(+J88+J89*J73^J90)/1000","v":0.32116271006242814},0.32116271006242814,0.32116271006242814,{"$f":"(+M88+M89*M73^M90)/1000","v":0.32116271006242814},{"$f":"(+N88+N89*N73^N90)/1000","v":0.32116271006242814},{"$f":"(+O88+O89*O73^O90)/1000","v":0.32116271006242814},0.32116271006242814,0.32116271006242814,0.32116271006242814,0.3,0.4,0.6]
[null,null,null,null,"C7","W",null,null,null,0,0,0,0,0,0,0,0,0]
[null,null,null,null,"C8","W",null,null,null,15,15,15,15,15,15,15,15,15]
[null,null,null,null,"n","-",null,null,null,0.48,0.48,0.48,0.48,0.48,0.48,0.48,0.48,0.48]
["power consumption of auxiliary devices at intermediate load;",null,null,null,"Paux,gnr,Pint ","kW",{"$f":"INDEX(J95:U95,1,$C$36)","v":6.0065080230017151E-2},null,null,{"$f":"(+J92+J93*J81^J94)/1000","v":6.0065080230017151E-2},6.0065080230017151E-2,6.0065080230017151E-2,{"$f":"(+M92+M93*M81^M94)/1000","v":6.0065080230017151E-2},{"$f":"(+N92+N93*N81^N94)/1000","v":6.0065080230017151E-2},{"$f":"(+O92+O93*O81^O94)/1000","v":6.0065080230017151E-2},6.0065080230017151E-2,6.0065080230017151E-2,6.0065080230017151E-2,0.1,7.0000000000000007E-2,0.05]
[null,null,null,null,"C7","W",null,null,null,15,15,15,15,15,15,15,15,15]
[null,null,null,null,"C8","W",null,null,null,0,0,0,0,0,0,0,0,0]
[null,null,null,null,"n","-",null,null,null,0,0,0,0,0,0,0,0,0]
["stand-by power consumption of auxiliary devices;",null,null,null,"Paux,gnr,P0 ","kW",{"$f":"INDEX(J99:U99,1,$C$36)","v":1.4999999999999999E-2},null,null,{"$f":"(+J96+J97*J85^J98)/1000","v":1.4999999999999999E-2},1.4999999999999999E-2,1.4999999999999999E-2,1.4999999999999999E-2,1.4999999999999999E-2,1.4999999999999999E-2,1.4999999999999999E-2,1.4999999999999999E-2,1.4999999999999999E-2,0,0,0]
["auxiliary power when the generation system is inactive",null,null,null,"Paux,off","kW",{"$f":"INDEX(J100:U100,1,$C$36)","v":0},null,null,0,0,0,0,0,0,0,0,0,0,0,0]
["minimum operating boiler temperature.",null,null,null,"θgnr,min","°C",{"$f":"INDEX(J101:U101,1,$C$36)","v":30},null,null,50,30,0,50,30,0,50,50,50,50,50,50]
["Recoverable fraction of stand-by losses",null,null,null,"fgnr,env","-",{"$f":"INDEX(J102:U102,1,$C$36)","v":0.5},null,null,0.5,0.5,0.5,0.5,0.5,0.5,0.5,0.5,0.5,0.5,0.5,0.5]
[]
["correction factor of full-load efficiency;",null,null,null,"fcorr,Pn ","-",{"$f":"INDEX(J104:U104,1,$C$36)","v":0.04},null,null,0.04,0.04,0.2,0.04,0.04,0.2,0.04,0.04,0.1,0.04,0.04,0.04]
["correction factor of intermediate load efficiency;",null,null,null,"fcorr,Pint ","-",{"$f":"INDEX(J105:U105,1,$C$36)","v":0.05},null,null,0.05,0.05,0.2,0.05,0.05,0.2,0.05,0.05,0.05,0.05,0.05,0.05]
[]
["generator average water temperature at test conditions for full load;",null,null,null,"θgnr,test,Pn","°C",{"$f":"INDEX(J107:U107,1,$C$36)","v":70},null,null,70,70,70,70,70,70,70,70,70,70,70,70]
["generator average water temperature at test conditions for intermediate load;",null,null,null,"θgnr,test,Pint","°C",{"$f":"INDEX(J108:U108,1,$C$36)","v":40},null,null,50,40,30,50,40,30,50,50,50,50,50,50]
["difference between mean boiler temperature and test room temperature in test conditions;",null,null,null,"Dθtest,P0 ","°C",{"$f":"INDEX(J109:U109,1,$C$36)","v":50},null,null,50,50,50,50,50,50,50,50,50,50,50,50]
[]
["part of the auxiliary energy recovered",null,null,null,"frvd,aux ","-",{"$f":"INDEX(J111:U111,1,$C$36)","v":0.75},null,null,0.75,0.75,0.75,0.75,0.75,0.75,0.75,0.75,0.75,0.75,0.75,0.75]
["part of the nominal electrical power not transmitted to the distribution sub-system",null,null,null,"frbl,aux ","-",{"$f":"INDEX(J112:U112,1,$C$36)","v":0.25},null,null,0.25,0.25,0.25,0.25,0.25,0.25,0.25,0.25,0.25,0.25,0.25,0.25]
[]
[]
[]
[]
["System design data"]
["Installation room temperature;",null,null,null,"qi,brm ","°C",15]
["Temperature reduction factor of install. room",null,null,null,"bbrm","-",0.7]

{"sheet":"Input_series","index":6,"n_rows":26,"n_cols":31,"rows_kept":26,"cut":false,"hidden":false,"merged":[[0,0,0,6]]}
["Load here the value of input variables for each time-step (time series)\nSet the number of input data for each time steps and the number of time step before running The macro from sheet \"Output series\".\n\nLocal constant data may be input via the sheets \"Constants\" "]
[]
["Time series for data input"]
["Settings"]
["Number of input data",null,24]
["Number of time steps",null,7]
[]
["Description","Calculation time interval","Ambient air temperature","Sensible energy need for cooling in thermal zone j=1 ","Sensible energy need for cooling in thermal zone j=2 ","Sensible energy need for cooling in thermal zone j=3","Sensible energy need for cooling in thermal zone j=4","Required AHU cooling coil output for ventilation system k=1","Required AHU cooling coil output for ventilation system k=2","Required cooling air supply temperature","Heat losses of cooling emission in thermal zone j=1","Heat losses of cooling emission in thermal zone j=2","Heat losses of cooling emission in thermal zone j=3","Heat losses of cooling emission in thermal zone j=4","Auxiliary energy for cooling emission system in thermal zone j=1","Auxiliary energy for cooling emission system in thermal zone j=2","Auxiliary energy for cooling emission system in thermal zone j=3","Auxiliary energy for cooling emission system in thermal zone j=4","Portion of cooling distribution auxiliary energy going to the chilled water for distribution system","Equivalent internal temperature","Cooling energy extracted by the cooling generation system","Chilled water outlet temperature from the cooling generation ","Electric energy input to the cooling generation system","Heat input to the absorption cooling generation","Auxiliary energy for cooling generation system"]
["Symbol","tc,i","ϑe ","QC;nd;zt;j","QC;nd;zt;j","QC;nd;zt;j;i","QC;nd;zt;j;i","QC;ahu,k;out;req;i","QC;ahu,k;out;req;i","JSUP;C;req","QC;em,ls;zt,j","QC;em,ls;zt,j","QC;em,ls;zt,j","QC;em,ls;zt,j","WC;aux;em;j","WC;aux;em;j","WC;aux;em;j","WC;aux;em;j","fwat;C;dis;aux","Jint;inc","QC;gen;in","ϑC;gen;out","EC,gen,el;in","QH;C;gen;abs;in","WC;aux;gen"]
["Unit","h","°C","kWh","kWh","kWh","kWh","kWh","kWh","°C","kWh","kWh","kWh","kWh","kWh","kWh","kWh","kWh","- ","°C","kWh","°C","kWh","kWh","kWh"]
["Origin","M1-9","M1-13","M2-2","M2-2","M2-2","M2-2","M5-8","M5-8","M5-8","M4-5","M4-5","M4-5","M4-5","M4-5","M4-5","M4-5","M4-5","M4-6","M4-5","M4-8","M4-8","M4-8","M4-8","M4-8"]
[]
["Time stamp",null,"VALUES"]
[1,{"$f":"31*24","v":744},0.5,0,0,0,0,0,0,16,{"$f":"0.05*D14","v":0},{"$f":"0.05*E14","v":0},{"$f":"0.05*F14","v":0},{"$f":"0.05*G14","v":0},{"$f":"0.01*D14","v":0},{"$f":"0.01*E14","v":0},{"$f":"0.01*F14","v":0},{"$f":"0.01*G14","v":0},0.5,24,{"$f":"Output_series!K18","v":0},{"$f":"Output_series!J18","v":24},{"$f":"U14/4","v":0},0,0,null,{"$f":"0.72*O14","v":0},{"$f":"0.36*P14","v":0},null,{"$f":"0.72*Q14","v":0},{"$f":"0.36*R14","v":0}]
[2,{"$f":"28*24","v":672},1.8,0,0,0,0,0,0,16,{"$f":"0.05*D15","v":0},{"$f":"0.05*E15","v":0},{"$f":"0.05*F15","v":0},{"$f":"0.05*G15","v":0},{"$f":"0.01*D15","v":0},{"$f":"0.01*E15","v":0},{"$f":"0.01*F15","v":0},{"$f":"0.01*G15","v":0},0.5,24,{"$f":"Output_series!K19","v":0},{"$f":"Output_series!J19","v":24},{"$f":"U15/4","v":0},0,0,null,{"$f":"0.72*O15","v":0},{"$f":"0.36*P15","v":0},null,{"$f":"0.72*Q15","v":0},{"$f":"0.36*R15","v":0}]
[3,{"$f":"31*24","v":744},5.7,0,0,0,0,0,0,16,{"$f":"0.05*D16","v":0},{"$f":"0.05*E16","v":0},{"$f":"0.05*F16","v":0},{"$f":"0.05*G16","v":0},{"$f":"0.01*D16","v":0},{"$f":"0.01*E16","v":0},{"$f":"0.01*F16","v":0},{"$f":"0.01*G16","v":0},0.5,24,{"$f":"Output_series!K20","v":0},{"$f":"Output_series!J20","v":24},0,0,0,null,{"$f":"0.72*O16","v":0},{"$f":"0.36*P16","v":0},null,{"$f":"0.72*Q16","v":0},{"$f":"0.36*R16","v":0}]
[4,{"$f":"30*24","v":720},8.8000000000000007,0,0,0,0,0,0,16,{"$f":"0.05*D17","v":0},{"$f":"0.05*E17","v":0},{"$f":"0.05*F17","v":0},{"$f":"0.05*G17","v":0},{"$f":"0.01*D17","v":0},{"$f":"0.01*E17","v":0},{"$f":"0.01*F17","v":0},{"$f":"0.01*G17","v":0},0.5,24,{"$f":"Output_series!K21","v":0},{"$f":"Output_series!J21","v":24},0,0,0,null,{"$f":"0.72*O17","v":0},{"$f":"0.36*P17","v":0},null,{"$f":"0.72*Q17","v":0},{"$f":"0.36*R17","v":0}]
[5,{"$f":"31*24","v":744},13.9,0.41858803999999999,0,0.36257659599999997,0,0,0,16,{"$f":"0.05*D18","v":2.0929402E-2},{"$f":"0.05*E18","v":0},{"$f":"0.05*F18","v":1.8128829799999999E-2},{"$f":"0.05*G18","v":0},{"$f":"0.01*D18","v":4.1858804000000005E-3},{"$f":"0.01*E18","v":0},{"$f":"0.01*F18","v":3.6257659599999996E-3},{"$f":"0.01*G18","v":0},0.5,25,{"$f":"Output_series!K22","v":0.82022286779999998},{"$f":"Output_series!J22","v":25},0.20505571694999999,0,0,null,{"$f":"0.72*O18","v":3.0138338880000004E-3},{"$f":"0.36*P18","v":0},null,{"$f":"0.72*Q18","v":2.6105514911999995E-3},{"$f":"0.36*R18","v":0}]
[6,{"$f":"30*24","v":720},16.7,110.977553953,16.323896420000001,92.406979746999895,11.591430428000001,0,0,16,{"$f":"0.05*D19","v":5.5488776976500001},{"$f":"0.05*E19","v":0.81619482100000007},{"$f":"0.05*F19","v":4.6203489873499946},{"$f":"0.05*G19","v":0.57957152140000001},{"$f":"0.01*D19","v":1.10977553953},{"$f":"0.01*E19","v":0.1632389642},{"$f":"0.01*F19","v":0.92406979746999895},{"$f":"0.01*G19","v":0.11591430428000001},0.5,26,{"$f":"Output_series!K23","v":242.86485357539988},{"$f":"Output_series!J23","v":26},60.716213393849969,0,0,null,{"$f":"0.72*O19","v":0.79903838846159991},{"$f":"0.36*P19","v":5.8766027111999998E-2},null,{"$f":"0.72*Q19","v":0.66533025417839919},{"$f":"0.36*R19","v":4.1729149540800002E-2}]
[7,{"$f":"31*24","v":744},19,72.811080179000001,25.599985861,66.130369138000006,22.005637827099999,0,0,16,{"$f":"0.05*D20","v":3.6405540089500001},{"$f":"0.05*E20","v":1.2799992930500002},{"$f":"0.05*F20","v":3.3065184569000006},{"$f":"0.05*G20","v":1.1002818913550001},{"$f":"0.01*D20","v":0.72811080178999998},{"$f":"0.01*E20","v":0.25599985861000002},{"$f":"0.01*F20","v":0.66130369138000011},{"$f":"0.01*G20","v":0.220056378271},0.5,26,{"$f":"Output_series!K24","v":195.87442665535502},{"$f":"Output_series!J24","v":26},48.968606663838756,0,0,null,{"$f":"0.72*O20","v":0.5242397772888},{"$f":"0.36*P20","v":9.21599490996E-2},null,{"$f":"0.72*Q20","v":0.47613865779360004},{"$f":"0.36*R20","v":7.922029617755999E-2}]
[8,{"$f":"31*24","v":744},18.8,67.421570922399994,26.246903384500001,54.601771639799999,20.026401161999999,0,0,16,{"$f":"0.05*D21","v":3.3710785461199997},{"$f":"0.05*E21","v":1.3123451692250001},{"$f":"0.05*F21","v":2.73008858199},{"$f":"0.05*G21","v":1.0013200580999999},{"$f":"0.01*D21","v":0.67421570922399998},{"$f":"0.01*E21","v":0.26246903384500003},{"$f":"0.01*F21","v":0.54601771639800001},{"$f":"0.01*G21","v":0.20026401161999999},0.5,26,{"$f":"Output_series!K25","v":176.71147946413498},{"$f":"Output_series!J25","v":26},44.177869866033745,0,0,null,{"$f":"0.72*O21","v":0.48543531064127998},{"$f":"0.36*P21","v":9.4488852184200015E-2},null,{"$f":"0.72*Q21","v":0.39313275580655999},{"$f":"0.36*R21","v":7.2095044183199994E-2}]
[9,{"$f":"30*24","v":720},14.4,1.868553972,0,1.91385731,0,0,0,16,{"$f":"0.05*D22","v":9.3427698599999998E-2},{"$f":"0.05*E22","v":0},{"$f":"0.05*F22","v":9.5692865500000002E-2},{"$f":"0.05*G22","v":0},{"$f":"0.01*D22","v":1.8685539720000002E-2},{"$f":"0.01*E22","v":0},{"$f":"0.01*F22","v":1.91385731E-2},{"$f":"0.01*G22","v":0},0.5,25,{"$f":"Output_series!K26","v":3.9715318461000004},{"$f":"Output_series!J26","v":25},0.99288296152500011,0,0,null,{"$f":"0.72*O22","v":1.34535885984E-2},{"$f":"0.36*P22","v":0},null,{"$f":"0.72*Q22","v":1.3779772632E-2},{"$f":"0.36*R22","v":0}]
[10,{"$f":"31*24","v":744},10.199999999999999,0,0,0,0,0,0,16,{"$f":"0.05*D23","v":0},{"$f":"0.05*E23","v":0},{"$f":"0.05*F23","v":0},{"$f":"0.05*G23","v":0},{"$f":"0.01*D23","v":0},{"$f":"0.01*E23","v":0},{"$f":"0.01*F23","v":0},{"$f":"0.01*G23","v":0},0.5,24,{"$f":"Output_series!K27","v":0},{"$f":"Output_series!J27","v":24},0,0,0,null,{"$f":"0.72*O23","v":0},{"$f":"0.36*P23","v":0},null,{"$f":"0.72*Q23","v":0},{"$f":"0.36*R23","v":0}]
[11,{"$f":"30*24","v":720},4.5,0,0,0,0,0,0,16,{"$f":"0.05*D24","v":0},{"$f":"0.05*E24","v":0},{"$f":"0.05*F24","v":0},{"$f":"0.05*G24","v":0},{"$f":"0.01*D24","v":0},{"$f":"0.01*E24","v":0},{"$f":"0.01*F24","v":0},{"$f":"0.01*G24","v":0},0.5,24,{"$f":"Output_series!K28","v":0},{"$f":"Output_series!J28","v":24},0,0,0,null,{"$f":"0.72*O24","v":0},{"$f":"0.36*P24","v":0},null,{"$f":"0.72*Q24","v":0},{"$f":"0.36*R24","v":0}]
[12,{"$f":"31*24","v":744},2,0,0,0,0,0,0,16,{"$f":"0.05*D25","v":0},{"$f":"0.05*E25","v":0},{"$f":"0.05*F25","v":0},{"$f":"0.05*G25","v":0},{"$f":"0.01*D25","v":0},{"$f":"0.01*E25","v":0},{"$f":"0.01*F25","v":0},{"$f":"0.01*G25","v":0},0.5,24,{"$f":"Output_series!K29","v":0},{"$f":"Output_series!J29","v":24},0,0,0,null,{"$f":"0.72*O25","v":0},{"$f":"0.36*P25","v":0},null,{"$f":"0.72*Q25","v":0},{"$f":"0.36*R25","v":0}]
[null,null,null,null,null,null,null,null,null,null,null,null,null,null,null,null,null,null,null,null,{"$f":"SUM(U14:U25)","v":620.24251440878982},null,{"$f":"SUM(W14:W25)","v":155.06062860219745}]

{"sheet":"Method_input","index":7,"n_rows":50,"n_cols":7,"rows_kept":50,"cut":false,"hidden":false,"merged":[[0,0,0,6]]}
["THIS IS A MANDATORY SHEET\nAll input data for the method shall be listed here.\nIn the simplest version, values for data input in column D (both green and blue background) may be inserted manually.\nVarying data (green background) can be fed from the \"input_series\" sheet.\nIn this sample data sheet, product data (blue background) is linked to a sample catalogue built in the \"Detailed_input\" sheet"]
[]
[]
["Name","Symbol","Unit","Values","Origin","Varying","Notes"]
["Operating conditions data"]
["Calculation time interval","tc,i","h",744,"M1-9","No"]
["Ambient air temperature","ϑe ","°C",19,"M1-13","Yes"]
["Sensible energy need for cooling in thermal zone j=1 ","QC;nd;zt;j","kWh",72.811080179000001,"M2-2","Yes"]
["Sensible energy need for cooling in thermal zone j=2 ","QC;nd;zt;j","kWh",25.599985861,"M2-2","Yes"]
["Sensible energy need for cooling in thermal zone j=3","QC;nd;zt;j;i","kWh",66.130369138000006,"M2-2","Yes"]
["Sensible energy need for cooling in thermal zone j=4","QC;nd;zt;j;i","kWh",22.005637827099999,"M2-2","Yes"]
["Required AHU cooling coil output for ventilation system k=1","QC;ahu,k;out;req;i","kWh",0,"M5-8","yes"]
["Required AHU cooling coil output for ventilation system k=2","QC;ahu,k;out;req;i","kWh",0,"M5-8","yes"]
["Required cooling air supply temperature","JSUP;C;req","°C",16,"M5-8","yes"]
["Heat losses of cooling emission in thermal zone j=1","QC;em,ls;zt,j","kWh",3.6405540089500001,"M4-5","yes"]
["Heat losses of cooling emission in thermal zone j=2","QC;em,ls;zt,j","kWh",1.2799992930500002,"M4-5","yes"]
["Heat losses of cooling emission in thermal zone j=3","QC;em,ls;zt,j","kWh",3.3065184569000006,"M4-5","yes"]
["Heat losses of cooling emission in thermal zone j=4","QC;em,ls;zt,j","kWh",1.1002818913550001,"M4-5","yes"]
["Auxiliary energy for cooling emission system in thermal zone j=1","WC;aux;em;j","kWh",0.72811080178999998,"M4-5","yes"]
["Auxiliary energy for cooling emission system in thermal zone j=2","WC;aux;em;j","kWh",0.25599985861000002,"M4-5","yes"]
["Auxiliary energy for cooling emission system in thermal zone j=3","WC;aux;em;j","kWh",0.66130369138000011,"M4-5","yes"]
["Auxiliary energy for cooling emission system in thermal zone j=4","WC;aux;em;j","kWh",0.220056378271,"M4-5","yes"]
["Portion of cooling distribution auxiliary energy going to the chilled water for distribution system","fwat;C;dis;aux","- ",0.5,"M4-6","yes"]
["Equivalent internal temperature","Jint;inc","°C",26,"M4-5","yes"]
["Cooling energy extracted by the cooling generation system","QC;gen;in","kWh",195.87442665535502,"M4-8","yes"]
["Chilled water outlet temperature from the cooling generation ","ϑC;gen;out","°C",26,"M4-8","yes"]
["Electric energy input to the cooling generation system","EC,gen,el;in","kWh",48.968606663838756,"M4-8","yes"]
["Heat input to the absorption cooling generation","QH;C;gen;abs;in","kWh",0,"M4-8","yes"]
["Auxiliary energy for cooling generation system","WC;aux;gen","kWh",0,"M4-8","Yes"]
[]
["System design data"]
["Process design"]
["Control of the cooling generation outlet temperature","DX_CLG_DIS_TYPE",null,{"$f":"Process_design_data!C16","v":"ZONE_BASED"}]
["Cooling generation outlet temperature setpoint","ϑC;gen;out;set","°C",6,"local"]
["Maximum inlet temperature setpoint of the total distribution system for ODA_COMP control option","ϑC;dis;flw;set;max","°C",16,"local"]
["Minimum inlet temperature setpoint of the total distribution system for ODA_COMP control option","ϑC;dis;flw;set;min","°C",8,"local"]
["Slope factor of the total distribution system for ODA_COMP control option","fe","-",-0.8,"local"]
["Temperature offset of the total distribution system for ODA_COMP control option","DJoff","K",28,"local"]
["Factor for the cooling distribution losses (simplified calculation)","fC;ls;dis","-",0.1,"local"]
["Factor for the cooling distribution auxiliary energy (simplified calculation)","fC;aux;dis","-",0.01,"local"]
["Weighting factor for thermal energy","fW;th","-",1,"local"]
["Weighting factor for electric energy","fW;el","-",1,"local"]
[]
["Control type data"]
["Control of the cooling generation outlet temperature","CLG_GEN_TMP_CTRL",null,{"$f":"Process_design_data!C23","v":"VARIABLE"}]
["Control of the chilled water flow temperature of the total distribution system","CLG_DISTR_TMP_CTRL",null,{"$f":"Process_design_data!C30","v":"ODA_COMP"}]
[]
["Constants"]
["Density of water","rwat","kg/m3",1000]
["Specific heat of water","cwat","kWh/kg K",1.16E-3]

{"sheet":"Method_calculation","index":8,"n_rows":32,"n_cols":7,"rows_kept":32,"cut":false,"hidden":false,"merged":[[0,0,0,6]]}
["THIS IS A MANDATORY SHEET\nOne time step calculation shall be described here.\nFor each calculation step (= 1 row) data for the formula in column D shall be taken from the \"Method_input\" sheet or previous calculation steps.\nInclude in the column \"Formula ref\" its number in the standard text. The example is based on EN 15316-4-1:2008\nCopy and paste a copy of the equation into column \"Formula\"\nUse the column note for information on the calculation"]
[]
["Description","Symbol","Unit","Value","Formula ref","Formula","Notes"]
["Operation conditions calculations"]
["DX systems"]
["Required generation outlet temperature for zone based emitters","JC,gen;out;req","°C",{"$f":"IF(AND(Process_design_data!C9=\"DX\",Method_input!D33=\"ZONE_BASED\"),Method_input!D24,\"-\")","v":26},"Formula (1a)","JC,gen;out;req = JC;int;inc","Method output"]
["Required generation outlet temperature for air system based distribution","JC,gen;out;req","°C",{"$f":"IF(AND(Process_design_data!C9=\"DX\",Method_input!D33=\"AIR_BASED\"),Method_input!D14,\"-\")","v":"-"},"Formula (1b)","JC,gen;out;req = JSUP;C;req","Method output"]
["Water based systems"]
["Required generation outlet temperature if CLG_GEN_TMP_CTRL = CONST","JC,gen;out;req","°C",{"$f":"IF(AND(Process_design_data!C9=\"Water\",Method_input!D45=\"CONST\"),Method_input!D34,\"-\")","v":"-"},"Formula (1c)","JC,gen;out;req = JC;gen;out;set","Method output"]
["Required generation outlet temperature else","JC,gen;out;req","°C",{"$f":"IF(AND(Process_design_data!C9=\"Water\",Method_input!D45=\"VARIABLE\"),IF(D12<>\"-\",D12,D13),\"-\")","v":"-"},"Formula (1d)","JC,gen;out;req = JC;dis;in;flw;req","Method output"]
["Simplified Method"]
["Required inlet temperature of the total distribution system if CLG_DISTR_TMP_CTRL = CONST","ϑC;dis;in;flw;req","°C",{"$f":"IF(Method_input!D46=\"CONST\",Method_input!D34,\"-\")","v":"-"},"Formula (2a)","ϑC;dis;in;flw;req = ϑC;dis;flw;set"]
["required inlet temperature of the total distribution system if CLG_DISTR_TMP_CTRL = ODA_COMP","ϑC;dis;in;flw;req","°C",{"$f":"IF(Method_input!D46=\"ODA_COMP\",MIN(Method_input!D35,MAX(Method_input!D36,Method_input!D37*Method_input!D7+Method_input!D38)),\"-\")","v":12.799999999999999},"Formula (2b)","ϑC;dis;in;flw;req = min[ϑC;dis;flw;set;max;; max(ϑC;dis;flw;set;min ; fe × Je + DJoff)]"]
["Energy calculations"]
["Simplified Method"]
["energy really extracted by the from the thermal zone j=1 for DX systems","QC;zt;j","kWh",{"$f":"IF(AND(Process_design_data!C9=\"DX\",Method_input!D33=\"AIR_BASED\"),\"-\",MIN(Method_input!D8,IF(D26=\"-\",IF(D23=0,0,Method_input!D8/D23*Method_input!D25),IF(D26=0,0,Method_input!D8/D26*Method_input!D25))))","v":72.811080179000001},"Formula (3)",null,"Method output"]
["energy really extracted by the from the thermal zone j=2 for DX systems","QC;zt;j","kWh",{"$f":"IF(AND(Process_design_data!C9=\"DX\",Method_input!D33=\"AIR_BASED\"),\"-\",MIN(Method_input!D9,IF(D26=\"-\",IF(D23=0,0,Method_input!D9/D23*Method_input!D25),IF(D26=0,0,Method_input!D9/D26*Method_input!D25))))","v":25.599985860999997},"Formula (3)",null,"Method output"]
["energy really extracted by the from the thermal zone j=3 for DX systems","QC;zt;j","kWh",{"$f":"IF(AND(Process_design_data!C9=\"DX\",Method_input!D33=\"AIR_BASED\"),\"-\",MIN(Method_input!D10,IF(D26=\"-\",IF(D23=0,0,Method_input!D10/D23*Method_input!D25),IF(D26=0,0,Method_input!D10/D26*Method_input!D25))))","v":66.130369138000006},"Formula (3)",null,"Method output"]
["energy really extracted by the from the thermal zone j=4 for DX systems","QC;zt;j","kWh",{"$f":"IF(AND(Process_design_data!C9=\"DX\",Method_input!D33=\"AIR_BASED\"),\"-\",MIN(Method_input!D11,IF(D26=\"-\",IF(D23=0,0,Method_input!D11/D23*Method_input!D25),IF(D26=0,0,Method_input!D11/D26*Method_input!D25))))","v":22.005637827099999},"Formula (3)",null,"Method output"]
["energy really extracted by the from the air handling unit k=1","QC;ahu;k;out","kWh",{"$f":"IF(AND(Process_design_data!C9=\"DX\",Method_input!D33=\"ZONE_BASED\"),\"-\",MIN(Method_input!D12,IF(D26=\"-\",IF(D24=0,0,Method_input!D12/D24*Method_input!D25),IF(D26=0,0,Method_input!D12/D26*Method_input!D25))))","v":"-"},"Formula (4)",null,"Method output"]
["energy really extracted by the from the air handling unit k=2","QC;ahu;k;out","kWh",{"$f":"IF(AND(Process_design_data!C9=\"DX\",Method_input!D33=\"ZONE_BASED\"),\"-\",MIN(Method_input!D13,IF(D26=\"-\",IF(D24=0,0,Method_input!D13/D24*Method_input!D25),IF(D26=0,0,Method_input!D13/D26*Method_input!D25))))","v":"-"},"Formula (4)",null,"Method output"]
["DX systems"]
["energy to be extracted by the cooling generation system for DX systems","QC;gen;in;req","kWh",{"$f":"IF(AND(Process_design_data!C9=\"DX\",Method_input!D33=\"ZONE_BASED\"),Method_input!D8+Method_input!D9+Method_input!D10+Method_input!D11+Method_input!D15+Method_input!D16+Method_input!D17+Method_input!D18,\"-\")","v":195.87442665535502},"Formula (5a)",null,"Method output"]
["energy to be extracted by the cooling generation system for DX systems","QC;gen;in;req","kWh",{"$f":"IF(AND(Process_design_data!C9=\"DX\",Method_input!D33=\"AIR_BASED\"),Method_input!D12+Method_input!D13,\"-\")","v":"-"},"Formula (5b)",null,"Method output"]
["Water based systems"]
["Energy to be extracted by the cooling generation system","QC;gen;in;req","kWh",{"$f":"IF(Process_design_data!C9=\"DX\",\"-\",Method_input!D8+Method_input!D9+Method_input!D15+Method_input!D16+Method_input!D12+Method_input!D10+Method_input!D11+Method_input!D17+Method_input!D18+Method_input!D13+D27+Method_input!D23*D28)","v":"-"},"Formula (6)"]
["cooling distribution heat losses ","QC;ls;dis","kWh",{"$f":"IF(Process_design_data!C9=\"DX\",\"-\",Method_input!D39*(Method_input!D8+Method_input!D9+Method_input!D15+Method_input!D16+Method_input!D12+Method_input!D10+Method_input!D11+Method_input!D17+Method_input!D18+Method_input!D13))","v":"-"},"Formula (7)"]
["cooling auxiliary energy","WC;aux;dis","kWh",{"$f":"IF(Process_design_data!C9=\"DX\",\"-\",Method_input!D40*(Method_input!D8+Method_input!D9+Method_input!D15+Method_input!D16+Method_input!D12+Method_input!D10+Method_input!D11+Method_input!D17+Method_input!D18+Method_input!D13))","v":"-"},"Formula (8)",null,"Method output"]
["Performance expression calculations"]
["annual efficiency of the total cooling system","hC;tot;an","-",{"$f":"Output_series!O30/Output_series!P30","v":3.564690806971631},"Formula (25)"]
["total auxiliary energy for the cooling emission","WC;aux;em","kWh",{"$f":"Method_input!D19+Method_input!D20+Method_input!D21+Method_input!D22","v":1.8654707300510003},"Formula (26)",null,"Method output"]
["annual efficiency of the cooling generation system ","hC;gen;an","-",{"$f":"Input_series!U26/Output_series!Q30","v":3.8812810148492796},"Formula (28)",null,"Method output"]

{"sheet":"Method_output","index":9,"n_rows":24,"n_cols":6,"rows_kept":24,"cut":false,"hidden":false,"merged":[[0,0,0,8]]}
["THIS IS A MANDATORY SHEET\nOutput of one step calculation shall be indicated here.\nEach cell in the column value shall be a reference to a single cell in the \"Method_calculation\" sheet.\nThe macro will take the calculation step results and fill the values table in the \"Output_series\" sheet."]
[]
[]
[]
[]
[]
[]
[]
["Name","Symbol","Unit","Value","Intended destination","Notes"]
["Electric energy input to the cooling generation","EC;gen;el;in","kWh",{"$f":"Method_input!D27","v":48.968606663838756},"M1-9"]
["Auxiliary energy for the cooling emission","WC;aux;em","kWh",{"$f":"Method_calculation!D31","v":1.8654707300510003},"M1-9"]
["Auxiliary energy for the cooling distribution","WC;aux;dis","kWh",{"$f":"IF(Method_calculation!D28<>\"-\",Method_calculation!D28,0)","v":0},"M1-9"]
["Auxiliary energy of the cooling generation","WC;aux;gen","kWh",{"$f":"Method_input!D29","v":0},"M1-9"]
["Cooling energy extracted from thermal zone j=1","QC;out;zt,j","kWh",{"$f":"Method_calculation!D16","v":72.811080179000001},"M2-2, M4-5"]
["Cooling energy extracted from thermal zone j=2","QC;out;zt,j","kWh",{"$f":"Method_calculation!D17","v":25.599985860999997},"M2-2, M4-5"]
["Cooling energy extracted from thermal zone j=3","QC;out;zt,j","kWh",{"$f":"Method_calculation!D18","v":66.130369138000006},"M2-2, M4-5"]
["Cooling energy extracted from thermal zone j=4","QC;out;zt,j","kWh",{"$f":"Method_calculation!D19","v":22.005637827099999},"M2-2, M4-5"]
["Required coolinig generation outlet temperature","ϑC;gen:out;req","°C",{"$f":"IF(Method_calculation!D6<>\"-\",Method_calculation!D6,IF(Method_calculation!D7<>\"-\",Method_calculation!D7,IF(Method_calculation!D9<>\"-\",Method_calculation!D9,Method_calculation!D10)))","v":26},"M4-8"]
["Required cooling energy by the cooling generation system","QC;gen;in;req","kWh",{"$f":"IF(Method_calculation!D23=\"-\",Method_calculation!D26,Method_calculation!D23)","v":195.87442665535502},"M4-8"]
["AHU cooling coil output for ventilation system k=1","QC;ahu;out;k","kWh",{"$f":"Method_calculation!D20","v":"-"},"M5-8"]
["AHU cooling coil output for ventilation system k=2","QC;ahu;out;k","kWh",{"$f":"Method_calculation!D21","v":"-"},"M5-8"]
["Performance expression"]
["annual efficiency of the total cooling system","hC;tot;an","-",{"$f":"Method_calculation!D30","v":3.564690806971631}]
["annual efficiency of the cooling generation system ","hC;gen;an","-",{"$f":"Method_calculation!D32","v":3.8812810148492796}]

{"sheet":"Output_series","index":10,"n_rows":30,"n_cols":17,"rows_kept":30,"cut":false,"hidden":false,"merged":[[0,0,0,5],[6,0,6,10]]}
["Here a time series can be generated to test the method with variable input data.\nData input series must be inserted in the \"input_series\" sheet before."]
[]
["Time series for data output"]
["Settings"]
["Number of output data",null,null,null,null,null,null,12]
[]
["This table will be filled automatically via a macro scanning the \"input_series\" and performing for each time step the calculation defined in the \"Method_calculation\" sheet."]
["Press CLEAR OUTPUT to reset output series"]
["Press \"Run method\" to start calculation of individual time steps"]
[]
[]
[]
[null,"Electric energy input to the cooling generation","Auxiliary energy for the cooling emission","Auxiliary energy for the cooling distribution","Auxiliary energy of the cooling generation","Cooling energy extracted from thermal zone j=1","Cooling energy extracted from thermal zone j=2","Cooling energy extracted from thermal zone j=3","Cooling energy extracted from thermal zone j=4","Required coolinig generation outlet temperature","Required cooling energy by the cooling generation system","AHU cooling coil output for ventilation system k=1","AHU cooling coil output for ventilation system k=2"]
[null,"EC;gen;el;in","WC;aux;em","WC;aux;dis","WC;aux;gen","QC;out;zt,j","QC;out;zt,j","QC;out;zt,j","QC;out;zt,j","ϑC;gen:out;req","QC;gen;in;req","QC;ahu;out;k","QC;ahu;out;k"]
["Symbol","kWh","kWh","kWh","kWh","kWh","kWh","kWh","kWh","°C","kWh","kWh","kWh"]
["Destination","M1-9","M1-9","M1-9","M1-9","M2-2, M4-5","M2-2, M4-5","M2-2, M4-5","M2-2, M4-5","M4-8","M4-8","M5-8","M5-8"]
["Time stamp"]
[1,0,0,0,0,0,0,0,0,24,0,"-","-",null,{"$f":"SUM(F18:I18,L18:M18)","v":0},{"$f":"Method_input!$D$42*B18+Method_input!$D$41*Input_series!X14+Method_input!$D$42*C18+Method_input!$D$42*D18+Method_input!$D$42*E18","v":0},{"$f":"Method_input!$D$42*B18+Method_input!$D$41*Input_series!X14+Method_input!$D$42*E18","v":0}]
[2,0,0,0,0,0,0,0,0,24,0,"-","-",null,{"$f":"SUM(F19:I19,L19:M19)","v":0},{"$f":"Method_input!$D$42*B19+Method_input!$D$41*Input_series!X15+Method_input!$D$42*C19+Method_input!$D$42*D19+Method_input!$D$42*E19","v":0},{"$f":"Method_input!$D$42*B19+Method_input!$D$41*Input_series!X15+Method_input!$D$42*E19","v":0}]
[3,0,0,0,0,0,0,0,0,24,0,"-","-",null,0,{"$f":"Method_input!$D$42*B20+Method_input!$D$41*Input_series!X16+Method_input!$D$42*C20+Method_input!$D$42*D20+Method_input!$D$42*E20","v":0},{"$f":"Method_input!$D$42*B20+Method_input!$D$41*Input_series!X16+Method_input!$D$42*E20","v":0}]
[4,0,0,0,0,0,0,0,0,24,0,"-","-",null,0,{"$f":"Method_input!$D$42*B21+Method_input!$D$41*Input_series!X17+Method_input!$D$42*C21+Method_input!$D$42*D21+Method_input!$D$42*E21","v":0},{"$f":"Method_input!$D$42*B21+Method_input!$D$41*Input_series!X17+Method_input!$D$42*E21","v":0}]
[5,0.20505571694999999,7.8116463600000005E-3,0,0,0.41858803999999999,0,0.36257659599999997,0,25,0.82022286779999998,"-","-",null,0.78116463599999997,{"$f":"Method_input!$D$42*B22+Method_input!$D$41*Input_series!X18+Method_input!$D$42*C22+Method_input!$D$42*D22+Method_input!$D$42*E22","v":0.21286736331},{"$f":"Method_input!$D$42*B22+Method_input!$D$41*Input_series!X18+Method_input!$D$42*E22","v":0.20505571694999999}]
[6,60.716213393849969,2.3129986054799989,0,0,110.977553953,16.323896420000001,92.406979746999895,11.591430428000001,26,242.86485357539988,"-","-",null,231.29986054799988,{"$f":"Method_input!$D$42*B23+Method_input!$D$41*Input_series!X19+Method_input!$D$42*C23+Method_input!$D$42*D23+Method_input!$D$42*E23","v":63.029211999329966},{"$f":"Method_input!$D$42*B23+Method_input!$D$41*Input_series!X19+Method_input!$D$42*E23","v":60.716213393849969}]
[7,48.968606663838756,1.8654707300510003,0,0,72.811080179000001,25.599985860999997,66.130369138000006,22.005637827099999,26,195.87442665535502,"-","-",null,186.5470730051,{"$f":"Method_input!$D$42*B24+Method_input!$D$41*Input_series!X20+Method_input!$D$42*C24+Method_input!$D$42*D24+Method_input!$D$42*E24","v":50.834077393889757},{"$f":"Method_input!$D$42*B24+Method_input!$D$41*Input_series!X20+Method_input!$D$42*E24","v":48.968606663838756}]
[8,48.816546201967299,1.682966471087,0,0,67.421570922399994,26.246903384500001,54.601771639799999,20.026401161999999,26,176.71147946413498,"-","-",null,168.29664710869997,{"$f":"Method_input!$D$42*B25+Method_input!$D$41*Input_series!X21+Method_input!$D$42*C25+Method_input!$D$42*D25+Method_input!$D$42*E25","v":50.499512673054298},{"$f":"Method_input!$D$42*B25+Method_input!$D$41*Input_series!X21+Method_input!$D$42*E25","v":48.816546201967299}]
[9,1.0971356724851253,3.7824112820000005E-2,0,0,1.868553972,0,1.91385731,0,25,3.9715318461000004,"-","-",null,3.782411282,{"$f":"Method_input!$D$42*B26+Method_input!$D$41*Input_series!X22+Method_input!$D$42*C26+Method_input!$D$42*D26+Method_input!$D$42*E26","v":1.1349597853051254},{"$f":"Method_input!$D$42*B26+Method_input!$D$41*Input_series!X22+Method_input!$D$42*E26","v":1.0971356724851253}]
[10,0,0,0,0,0,0,0,0,24,0,"-","-",null,0,{"$f":"Method_input!$D$42*B27+Method_input!$D$41*Input_series!X23+Method_input!$D$42*C27+Method_input!$D$42*D27+Method_input!$D$42*E27","v":0},{"$f":"Method_input!$D$42*B27+Method_input!$D$41*Input_series!X23+Method_input!$D$42*E27","v":0}]
[11,0,0,0,0,0,0,0,0,24,0,"-","-",null,0,{"$f":"Method_input!$D$42*B28+Method_input!$D$41*Input_series!X24+Method_input!$D$42*C28+Method_input!$D$42*D28+Method_input!$D$42*E28","v":0},{"$f":"Method_input!$D$42*B28+Method_input!$D$41*Input_series!X24+Method_input!$D$42*E28","v":0}]
[12,0,0,0,0,0,0,0,0,24,0,"-","-",null,0,{"$f":"Method_input!$D$42*B29+Method_input!$D$41*Input_series!X25+Method_input!$D$42*C29+Method_input!$D$42*D29+Method_input!$D$42*E29","v":0},{"$f":"Method_input!$D$42*B29+Method_input!$D$41*Input_series!X25+Method_input!$D$42*E29","v":0}]
[null,null,null,null,null,null,null,null,null,null,null,null,null,null,{"$f":"SUM(O18:O29)","v":590.70715657979986},{"$f":"SUM(P18:P29)","v":165.71062921488914},{"$f":"SUM(Q18:Q29)","v":159.80355764909115}]

{"sheet":"Graphs","index":11,"n_rows":40,"n_cols":1,"rows_kept":40,"cut":false,"hidden":false,"merged":[]}
["Energy flow data"]
[]
[]
[]
[]
[]
[]
[]
[]
[]
[]
[]
[]
[]
[]
[]
[]
[]
[]
[]
[]
[]
[]
[]
[]
[]
[]
[]
[]
[]
[]
[]
[]
[]
[]
[]
[]
[]
[]
["Operating conditions data"]

{"sheet":"History","index":12,"n_rows":12,"n_cols":4,"rows_kept":12,"cut":false,"hidden":false,"merged":[]}
[]
[null,"Date","Version scope","Changes, notes"]
[]
[null,"2014-10-31","1st complete version"]
[]
[null,"2014-11-07","standard public enquiry","input value and formulae  corrections; graphs added; "]
[null,"2015-02-13",null,"disclaimer updated"]
[null,"2015-11-08","standard FV"]
[null,null,"simplified calculation added"]
[null,"2016-01-21","Simplified and detailed calculations separated"]
[null,"2016-01-24","feedback Pim Helm","input table adjusted"]
[null,"2016-03-07","Adjustment to last FV standard version","DX_CLG_DIS_TYPE option added, formula (5) separated"]